[Event "*** Titled Tuesday 3|2 Blitz"]
[Site "Chess.com"]
[Date "2016.01.05"]
[Round "3"]
[White "Imre91"]
[Black "Quinten94"]
[Result "0-1"]
[WhiteElo "2509"]
[BlackElo "2323"]
[TimeControl "180+2"]
[EndTime "11:33:07 PST"]
[Termination "Quinten94 won by resignation"]

1. d4 {[%clk 0:03:01.9]} 1... d5 {[%clk 0:03:01.2]} 2. Nf3 {[%clk 0:03:01.3]}
2... Nf6 {[%clk 0:03:02.2]} 3. Bg5 {[%clk 0:03:02.6]} 3... Ne4 {[%clk
0:03:02.8]} 4. Bh4 {[%clk 0:03:03]} 4... c5 {[%clk 0:03:03.6]} 5. e3 {[%clk
0:03:00]} 5... Nc6 {[%clk 0:03:04.1]} 6. Nbd2 {[%clk 0:02:59.8]} 6... Bf5 {[%clk
0:02:59.7]} 7. c3 {[%clk 0:02:57.8]} 7... Qb6 {[%clk 0:02:59]} 8. Qc1 {[%clk
0:02:58.5]} 8... e6 {[%clk 0:02:58.5]} 9. Be2 {[%clk 0:02:58.3]} 9... Bd6 {[%clk
0:02:56]} 10. O-O {[%clk 0:02:59.8]} 10... O-O {[%clk 0:02:56.7]} 11. a3 {[%clk
0:02:59]} 11... Rac8 {[%clk 0:02:47.8]} 12. Bg3 {[%clk 0:02:57.9]} 12... Nxg3
{[%clk 0:02:46.2]} 13. hxg3 {[%clk 0:02:59.8]} 13... h6 {[%clk 0:02:47.2]} 14.
Rd1 {[%clk 0:03:00.1]} 14... cxd4 {[%clk 0:02:42.2]} 15. exd4 {[%clk 0:03:00.3]}
15... Na5 {[%clk 0:02:42.2]} 16. Ne1 {[%clk 0:02:56]} 16... e5 {[%clk
0:02:26.7]} 17. dxe5 {[%clk 0:02:30.8]} 17... Bxe5 {[%clk 0:02:16.4]} 18. g4
{[%clk 0:02:14.8]} 18... Bg6 {[%clk 0:02:13.7]} 19. Nef3 {[%clk 0:02:09.9]}
19... Bf6 {[%clk 0:02:06.5]} 20. a4 {[%clk 0:02:07.2]} 20... Rfe8 {[%clk
0:02:06.2]} 21. Bf1 {[%clk 0:02:06.7]} 21... d4 {[%clk 0:02:06.7]} 22. c4 {[%clk
0:02:01.8]} 22... d3 {[%clk 0:02:07.8]} 23. Rb1 {[%clk 0:01:57.6]} 23... Re2
{[%clk 0:02:06.1]} 24. Bxe2 {[%clk 0:01:52.8]} 24... dxe2 {[%clk 0:02:07.2]} 25.
Re1 {[%clk 0:01:54.4]} 25... Bxb1 {[%clk 0:02:08.2]} 26. Qxb1 {[%clk 0:01:56.3]}
26... Nxc4 {[%clk 0:01:55.1]} 27. Nxc4 {[%clk 0:01:55.1]} 27... Rxc4 {[%clk
0:01:56.2]} 28. Rxe2 {[%clk 0:01:56.7]} 28... g6 {[%clk 0:01:57.5]} 29. g5
{[%clk 0:01:52.1]} 29... hxg5 {[%clk 0:01:57.6]} 30. b3 {[%clk 0:01:53.7]} 30...
Rxa4 {[%clk 0:01:52]} 31. Qd3 {[%clk 0:01:52.2]} 31... Ra1+ {[%clk 0:01:46.5]}
32. Kh2 {[%clk 0:01:52.6]} 32... g4 {[%clk 0:01:40.4]} 33. Nd2 {[%clk
0:01:53.1]} 33... Qc7+ {[%clk 0:01:24.6]} 34. Qg3 {[%clk 0:01:49.1]} 34... Qxg3+
{[%clk 0:01:15.9]} 35. Kxg3 {[%clk 0:01:51]} 35... a5 {[%clk 0:01:15.3]} 36.
Kxg4 {[%clk 0:01:48.1]} 36... b5 {[%clk 0:01:14.2]} 37. Re8+ {[%clk 0:01:45.5]}
37... Kg7 {[%clk 0:01:15.2]} 38. Ne4 {[%clk 0:01:43.7]} 38... Bd4 {[%clk
0:01:14.9]} 39. Kg3 {[%clk 0:01:39.2]} 39... a4 {[%clk 0:01:14.4]} 40. bxa4
{[%clk 0:01:40.6]} 40... bxa4 {[%clk 0:01:15.4]} 41. Ra8 {[%clk 0:01:42]} 41...
a3 {[%clk 0:01:13.7]} 42. Ra4 {[%clk 0:01:42.8]} 42... a2 {[%clk 0:00:43.9]} 43.
f4 {[%clk 0:01:36.6]} 43... Re1 {[%clk 0:00:35.4]} 44. Rxa2 {[%clk 0:01:36.8]}
44... Re3+ {[%clk 0:00:34.6]} 45. Kh2 {[%clk 0:01:32.4]} 45... Rxe4 {[%clk
0:00:34.8]} 0-1

[Event "*** Titled Tuesday 3|2 Blitz"]
[Site "Chess.com"]
[Date "2016.01.05"]
[Round "3"]
[White "CM_Perligero"]
[Black "pedromartinez91"]
[Result "0-1"]
[WhiteElo "1945"]
[BlackElo "2049"]
[TimeControl "180+2"]
[EndTime "11:33:08 PST"]
[Termination "pedromartinez91 won by resignation"]

1. e4 {[%clk 0:03:00]} 1... c5 {[%clk 0:02:58.6]} 2. Nc3 {[%clk 0:02:57.5]} 2...
Nc6 {[%clk 0:02:58.2]} 3. d3 {[%clk 0:02:55.8]} 3... g6 {[%clk 0:02:58.2]} 4. g3
{[%clk 0:02:56.6]} 4... Bg7 {[%clk 0:02:58.4]} 5. Bg2 {[%clk 0:02:57.4]} 5... d6
{[%clk 0:02:59.2]} 6. Nf3 {[%clk 0:02:57.4]} 6... e6 {[%clk 0:02:59.9]} 7. O-O
{[%clk 0:02:58]} 7... Nge7 {[%clk 0:03:00.6]} 8. Be3 {[%clk 0:02:58.5]} 8... O-O
{[%clk 0:03:01]} 9. Qd2 {[%clk 0:02:59.3]} 9... b6 {[%clk 0:03:01.6]} 10. Bh6
{[%clk 0:02:59.5]} 10... Bb7 {[%clk 0:03:02]} 11. h3 {[%clk 0:02:57]} 11... Qd7
{[%clk 0:03:01.9]} 12. Nh2 {[%clk 0:02:55.7]} 12... Nd4 {[%clk 0:02:59.8]} 13.
Bxg7 {[%clk 0:02:53]} 13... Kxg7 {[%clk 0:03:00]} 14. f4 {[%clk 0:02:53.6]}
14... f6 {[%clk 0:02:56.4]} 15. Nd1 {[%clk 0:02:53.1]} 15... e5 {[%clk 0:02:50]}
16. c3 {[%clk 0:02:52.8]} 16... Nb5 {[%clk 0:02:50.2]} 17. Ne3 {[%clk
0:02:49.9]} 17... Nc7 {[%clk 0:02:50.4]} 18. Nhg4 {[%clk 0:02:44.7]} 18... exf4
{[%clk 0:02:42.4]} 19. Rxf4 {[%clk 0:02:41.9]} 19... Ne6 {[%clk 0:02:42.8]} 20.
Rff1 {[%clk 0:02:40.5]} 20... h5 {[%clk 0:02:36.8]} 21. Nxf6 {[%clk 0:02:27.7]}
21... Rxf6 {[%clk 0:02:31.1]} 22. Rxf6 {[%clk 0:02:26.8]} 22... Kxf6 {[%clk
0:02:31.8]} 23. Nd5+ {[%clk 0:02:25.3]} 23... Bxd5 {[%clk 0:02:22.3]} 24. exd5
{[%clk 0:02:25.7]} 24... Nc7 {[%clk 0:02:21.1]} 25. Qh6 {[%clk 0:02:20.1]} 25...
Nf5 {[%clk 0:02:20.8]} 26. Rf1 {[%clk 0:02:18.3]} 26... Qg7 {[%clk 0:02:20.9]}
27. Qf4 {[%clk 0:02:17.1]} 27... Ke7 {[%clk 0:02:21]} 28. g4 {[%clk 0:02:14.2]}
28... hxg4 {[%clk 0:02:19.4]} 29. hxg4 {[%clk 0:02:14.5]} 29... Nh6 {[%clk
0:02:20]} 30. Qg5+ {[%clk 0:02:13.9]} 30... Kd7 {[%clk 0:02:20.5]} 31. Rf6
{[%clk 0:02:11.7]} 31... Rg8 {[%clk 0:02:06.7]} 32. Qf4 {[%clk 0:02:09.8]} 32...
Ne8 {[%clk 0:02:06.3]} 33. Re6 {[%clk 0:02:05.4]} 33... Nf7 {[%clk 0:02:05.6]}
34. g5 {[%clk 0:02:00.2]} 34... Ne5 {[%clk 0:02:03.2]} 35. Qa4+ {[%clk
0:01:51.2]} 35... Kd8 {[%clk 0:02:01.7]} 36. d4 {[%clk 0:01:47.7]} 36... cxd4
{[%clk 0:02:01.4]} 37. cxd4 {[%clk 0:01:48.3]} 37... Nd7 {[%clk 0:01:59]} 38.
Qxa7 {[%clk 0:01:45.7]} 38... Qxd4+ {[%clk 0:01:58.7]} 39. Kh2 {[%clk
0:01:22.1]} 39... Rh8+ {[%clk 0:01:55.5]} 40. Kg3 {[%clk 0:01:22.5]} 40... Nc7
{[%clk 0:01:47.1]} 41. Re4 {[%clk 0:01:06.5]} 41... Qd3+ {[%clk 0:01:40]} 42.
Bf3 {[%clk 0:00:53]} 42... Rh3+ {[%clk 0:01:38.5]} 43. Kxh3 {[%clk 0:00:51.4]}
43... Qxf3+ {[%clk 0:01:38.5]} 0-1

[Event "*** Titled Tuesday 3|2 Blitz"]
[Site "Chess.com"]
[Date "2016.01.05"]
[Round "3"]
[White "Shankland"]
[Black "maciek_92"]
[Result "0-1"]
[WhiteElo "2444"]
[BlackElo "2293"]
[TimeControl "180+2"]
[EndTime "11:33:13 PST"]
[Termination "maciek_92 won by resignation"]

1. Nf3 {[%clk 0:03:01.9]} 1... Nf6 {[%clk 0:02:59.5]} 2. g3 {[%clk 0:03:03.4]}
2... d5 {[%clk 0:02:59.8]} 3. Bg2 {[%clk 0:03:04.4]} 3... Bg4 {[%clk 0:02:59.2]}
4. c4 {[%clk 0:03:04.2]} 4... e6 {[%clk 0:02:59.1]} 5. O-O {[%clk 0:02:59.5]}
5... Nbd7 {[%clk 0:02:56.8]} 6. cxd5 {[%clk 0:02:58.2]} 6... exd5 {[%clk
0:02:57.3]} 7. Qb3 {[%clk 0:02:59.9]} 7... Nc5 {[%clk 0:02:40.4]} 8. Qc2 {[%clk
0:03:00.9]} 8... Be7 {[%clk 0:02:38.4]} 9. d3 {[%clk 0:03:02.2]} 9... O-O {[%clk
0:02:38.3]} 10. Nc3 {[%clk 0:03:03.3]} 10... Ne6 {[%clk 0:02:28.5]} 11. e4
{[%clk 0:02:44.9]} 11... Bxf3 {[%clk 0:01:33.8]} 12. Bxf3 {[%clk 0:02:44.4]}
12... Nd4 {[%clk 0:01:35.4]} 13. Qd1 {[%clk 0:02:46.1]} 13... Nxf3+ {[%clk
0:01:31.7]} 14. Qxf3 {[%clk 0:02:46.9]} 14... d4 {[%clk 0:01:30.9]} 15. Ne2
{[%clk 0:02:46.5]} 15... c5 {[%clk 0:01:30.9]} 16. Bf4 {[%clk 0:02:38.7]} 16...
Rc8 {[%clk 0:01:25.8]} 17. b3 {[%clk 0:02:39.9]} 17... Nd7 {[%clk 0:01:20.4]}
18. Rac1 {[%clk 0:02:39.1]} 18... Re8 {[%clk 0:01:20.7]} 19. Rc2 {[%clk
0:02:27.6]} 19... Bg5 {[%clk 0:01:19.9]} 20. Bxg5 {[%clk 0:02:20.7]} 20... Qxg5
{[%clk 0:01:19.5]} 21. Qg2 {[%clk 0:02:22.3]} 21... Qg6 {[%clk 0:01:18.7]} 22.
f4 {[%clk 0:02:22.8]} 22... Qa6 {[%clk 0:01:19.5]} 23. Qf3 {[%clk 0:02:22.5]}
23... b5 {[%clk 0:01:18.9]} 24. Rfc1 {[%clk 0:02:23.3]} 24... c4 {[%clk
0:00:57.5]} 25. bxc4 {[%clk 0:02:23.6]} 25... bxc4 {[%clk 0:00:58.1]} 26. Rxc4
{[%clk 0:02:23.7]} 26... Rxc4 {[%clk 0:00:59.2]} 27. Rxc4 {[%clk 0:02:25.6]}
27... Qxa2 {[%clk 0:00:58.8]} 28. Rxd4 {[%clk 0:02:10.2]} 28... Nc5 {[%clk
0:00:59.2]} 29. Rd5 {[%clk 0:02:11.4]} 29... Nb3 {[%clk 0:00:59.6]} 30. Qe3
{[%clk 0:02:08.6]} 30... a5 {[%clk 0:00:55.8]} 31. f5 {[%clk 0:01:51.2]} 31...
a4 {[%clk 0:00:52]} 32. f6 {[%clk 0:01:52.5]} 32... Qa1+ {[%clk 0:00:52.8]} 33.
Kg2 {[%clk 0:01:52.5]} 33... Qxf6 {[%clk 0:00:54.2]} 34. d4 {[%clk 0:01:42.2]}
34... Qa6 {[%clk 0:00:51.7]} 35. Nc3 {[%clk 0:01:23.1]} 35... a3 {[%clk
0:00:47]} 36. Na2 {[%clk 0:01:24.4]} 36... Qc4 {[%clk 0:00:47.6]} 37. Rd7 {[%clk
0:01:22.6]} 37... Qc2+ {[%clk 0:00:44.2]} 38. Kh3 {[%clk 0:01:21.8]} 38... Qxa2
{[%clk 0:00:43.2]} 39. Qf4 {[%clk 0:01:23.1]} 39... Rf8 {[%clk 0:00:38]} 40. Qd6
{[%clk 0:01:24.3]} 40... h6 {[%clk 0:00:31.9]} 41. Rd8 {[%clk 0:01:19.9]} 41...
Rxd8 {[%clk 0:00:32.5]} 42. Qxd8+ {[%clk 0:01:21.6]} 42... Kh7 {[%clk
0:00:34.1]} 43. Qd5 {[%clk 0:01:23.3]} 43... Qc2 {[%clk 0:00:25.9]} 44. Qxf7
{[%clk 0:01:17]} 44... Qc8+ {[%clk 0:00:22.6]} 0-1

[Event "*** Titled Tuesday 3|2 Blitz"]
[Site "Chess.com"]
[Date "2016.01.05"]
[Round "3"]
[White "Danirod"]
[Black "Krutoy123"]
[Result "1-0"]
[WhiteElo "2390"]
[BlackElo "2336"]
[TimeControl "180+2"]
[EndTime "11:33:29 PST"]
[Termination "Danirod won by checkmate"]

1. e4 {[%clk 0:03:01.9]} 1... c5 {[%clk 0:02:50.4]} 2. Nf3 {[%clk 0:03:02.1]}
2... e6 {[%clk 0:02:51]} 3. c3 {[%clk 0:03:03]} 3... Nf6 {[%clk 0:02:50.4]} 4.
e5 {[%clk 0:03:04.3]} 4... Nd5 {[%clk 0:02:50.4]} 5. Bc4 {[%clk 0:03:05.4]} 5...
Nb6 {[%clk 0:02:49.8]} 6. Bb3 {[%clk 0:03:06.7]} 6... Nc6 {[%clk 0:02:51.3]} 7.
d4 {[%clk 0:03:07.1]} 7... Be7 {[%clk 0:02:51.6]} 8. dxc5 {[%clk 0:03:04.5]}
8... Bxc5 {[%clk 0:02:51.3]} 9. O-O {[%clk 0:03:05.3]} 9... O-O {[%clk
0:02:31.7]} 10. Nbd2 {[%clk 0:03:05.8]} 10... d5 {[%clk 0:02:29.1]} 11. exd6
{[%clk 0:03:06.4]} 11... Bxd6 {[%clk 0:02:27.2]} 12. Ne4 {[%clk 0:03:07]} 12...
Bc7 {[%clk 0:02:28]} 13. Qe2 {[%clk 0:03:07.6]} 13... h6 {[%clk 0:02:26.1]} 14.
Be3 {[%clk 0:03:01.9]} 14... f5 {[%clk 0:02:04.4]} 15. Nc5 {[%clk 0:03:01.1]}
15... Nd5 {[%clk 0:02:04.8]} 16. Rad1 {[%clk 0:02:58.1]} 16... Qf6 {[%clk
0:02:01.3]} 17. Bd4 {[%clk 0:02:46.4]} 17... Nxd4 {[%clk 0:02:00.1]} 18. Nxd4
{[%clk 0:02:47.7]} 18... Nf4 {[%clk 0:01:54]} 19. Qf3 {[%clk 0:02:48.7]} 19...
b6 {[%clk 0:01:38.4]} 20. Ncxe6 {[%clk 0:02:28.3]} 20... Bxe6 {[%clk 0:01:23.7]}
21. Nxe6 {[%clk 0:02:26.3]} 21... Nxe6 {[%clk 0:01:25.6]} 22. Rfe1 {[%clk
0:02:25.2]} 22... Qh4 {[%clk 0:01:18.4]} 23. g3 {[%clk 0:02:26.3]} 23... Qh3
{[%clk 0:01:16.1]} 24. Rxe6 {[%clk 0:02:22.1]} 24... Kh8 {[%clk 0:01:16.6]} 25.
Rd7 {[%clk 0:02:19.4]} 25... f4 {[%clk 0:01:06.5]} 26. Rxc7 {[%clk 0:02:20.5]}
26... Rae8 {[%clk 0:00:54.9]} 27. Qe4 {[%clk 0:02:12.2]} 27... f3 {[%clk
0:00:51.3]} 28. Qxf3 {[%clk 0:02:13.5]} 28... Rd8 {[%clk 0:00:24.8]} 29. Qe3
{[%clk 0:01:58.2]} 29... Qg4 {[%clk 0:00:08.9]} 30. Re4 {[%clk 0:01:45.4]} 30...
Qg6 {[%clk 0:00:05.4]} 31. Kg2 {[%clk 0:01:40.4]} 31... Qd6 {[%clk 0:00:04.3]}
32. Rce7 {[%clk 0:01:39.6]} 32... Qc6 {[%clk 0:00:04.6]} 33. Re6 {[%clk
0:01:37.3]} 33... Qb7 {[%clk 0:00:04.4]} 34. f3 {[%clk 0:01:37.2]} 34... b5
{[%clk 0:00:03.1]} 35. h4 {[%clk 0:01:36.8]} 35... a5 {[%clk 0:00:03]} 36. a3
{[%clk 0:01:36.7]} 36... a4 {[%clk 0:00:04.1]} 37. Ba2 {[%clk 0:01:38.1]} 37...
Qd7 {[%clk 0:00:05.1]} 38. g4 {[%clk 0:01:31.5]} 38... Kh7 {[%clk 0:00:02.8]}
39. Rd4 {[%clk 0:01:30.4]} 39... Qc7 {[%clk 0:00:02]} 40. Qe4+ {[%clk
0:01:28.6]} 40... Kh8 {[%clk 0:00:02.5]} 41. Rxd8 {[%clk 0:01:29.6]} 41... Qxd8
{[%clk 0:00:03.8]} 42. Bb1 {[%clk 0:01:30.1]} 42... Qd2+ {[%clk 0:00:04.5]} 43.
Kh3 {[%clk 0:01:31.6]} 43... Kg8 {[%clk 0:00:03.1]} 44. Re7 {[%clk 0:01:28.6]}
44... Rf6 {[%clk 0:00:02.7]} 45. Re8+ {[%clk 0:01:27.7]} 45... Kf7 {[%clk
0:00:03.9]} 46. Qe7# {[%clk 0:01:28.6]} 1-0

[Event "*** Titled Tuesday 3|2 Blitz"]
[Site "Chess.com"]
[Date "2016.01.05"]
[Round "3"]
[White "FairChess_on_YouTube"]
[Black "yurisolo"]
[Result "1-0"]
[WhiteElo "2729"]
[BlackElo "2467"]
[TimeControl "180+2"]
[EndTime "11:33:39 PST"]
[Termination "FairChess_on_YouTube won on time"]

1. d4 {[%clk 0:03:01.9]} 1... Nf6 {[%clk 0:03:01.2]} 2. c4 {[%clk 0:03:02.1]}
2... c6 {[%clk 0:03:02.6]} 3. Bf4 {[%clk 0:03:00.5]} 3... Qb6 {[%clk 0:03:00.8]}
4. Qd2 {[%clk 0:03:01.6]} 4... Ne4 {[%clk 0:02:59.5]} 5. Qc2 {[%clk 0:03:02.3]}
5... d5 {[%clk 0:02:49.6]} 6. cxd5 {[%clk 0:02:30.6]} 6... Bf5 {[%clk
0:02:49.7]} 7. Qb3 {[%clk 0:02:02.9]} 7... cxd5 {[%clk 0:02:22.9]} 8. Qxb6
{[%clk 0:01:39.2]} 8... axb6 {[%clk 0:02:23.2]} 9. Bxb8 {[%clk 0:01:40.8]} 9...
Rxb8 {[%clk 0:02:22.1]} 10. f3 {[%clk 0:01:41.7]} 10... Nf6 {[%clk 0:02:19.5]}
11. Nc3 {[%clk 0:01:42.4]} 11... e6 {[%clk 0:02:19.3]} 12. e3 {[%clk 0:01:43.3]}
12... Bb4 {[%clk 0:02:17.2]} 13. Bb5+ {[%clk 0:01:44.1]} 13... Ke7 {[%clk
0:02:17.4]} 14. Ne2 {[%clk 0:01:45.7]} 14... h5 {[%clk 0:02:05.6]} 15. a3 {[%clk
0:01:44.1]} 15... Bd6 {[%clk 0:01:56.3]} 16. Kd2 {[%clk 0:01:45.2]} 16... h4
{[%clk 0:01:56.5]} 17. Bd3 {[%clk 0:01:45.8]} 17... Bxd3 {[%clk 0:01:48.4]} 18.
Kxd3 {[%clk 0:01:47.2]} 18... g5 {[%clk 0:01:35.3]} 19. h3 {[%clk 0:01:43.7]}
19... Rbc8 {[%clk 0:01:28.1]} 20. Rac1 {[%clk 0:01:43.6]} 20... Rc6 {[%clk
0:01:28.8]} 21. e4 {[%clk 0:01:35]} 21... Bf4 {[%clk 0:01:13.3]} 22. Nxf4 {[%clk
0:01:30.2]} 22... gxf4 {[%clk 0:01:15.2]} 23. exd5 {[%clk 0:01:31.8]} 23... Nxd5
{[%clk 0:01:08.9]} 24. Nxd5+ {[%clk 0:01:26.2]} 24... exd5 {[%clk 0:01:09.7]}
25. Rhe1+ {[%clk 0:01:18]} 25... Kd6 {[%clk 0:01:04.6]} 26. Rcd1 {[%clk
0:01:11.4]} 26... Rg8 {[%clk 0:01:02.3]} 27. Rd2 {[%clk 0:01:12.6]} 27... f6
{[%clk 0:00:17.6]} 28. Rde2 {[%clk 0:01:09.4]} 28... Rg7 {[%clk 0:00:18.9]} 29.
Re8 {[%clk 0:00:57.9]} 29... Rcc7 {[%clk 0:00:11.4]} 30. R1e2 {[%clk 0:00:49]}
30... Rce7 {[%clk 0:00:11.4]} 31. Rd8+ {[%clk 0:00:34.7]} 31... Kc6 {[%clk
0:00:06.7]} 32. Rc2+ {[%clk 0:00:33.4]} 32... Kb5 {[%clk 0:00:06.9]} 33. Rxd5+
{[%clk 0:00:29.3]} 1-0

[Event "*** Titled Tuesday 3|2 Blitz"]
[Site "Chess.com"]
[Date "2016.01.05"]
[Round "3"]
[White "AndrewMcStone"]
[Black "DaPazz"]
[Result "1-0"]
[WhiteElo "1983"]
[BlackElo "1875"]
[TimeControl "180+2"]
[EndTime "11:33:44 PST"]
[Termination "AndrewMcStone won by resignation"]

1. d4 {[%clk 0:03:01.9]} 1... Nf6 {[%clk 0:03:00.1]} 2. c4 {[%clk 0:03:02.9]}
2... e6 {[%clk 0:03:01.2]} 3. Nc3 {[%clk 0:03:04.1]} 3... Bb4 {[%clk 0:03:01.3]}
4. f3 {[%clk 0:03:05.5]} 4... c5 {[%clk 0:02:59.7]} 5. d5 {[%clk 0:03:06.4]}
5... Bxc3+ {[%clk 0:02:57.5]} 6. bxc3 {[%clk 0:03:06.8]} 6... d6 {[%clk
0:02:59]} 7. e4 {[%clk 0:03:07.8]} 7... e5 {[%clk 0:03:00]} 8. Bd3 {[%clk
0:03:08.4]} 8... b6 {[%clk 0:02:56]} 9. Ne2 {[%clk 0:03:06]} 9... O-O {[%clk
0:02:56]} 10. O-O {[%clk 0:02:56.7]} 10... Bd7 {[%clk 0:02:55.7]} 11. g4 {[%clk
0:02:57.2]} 11... g6 {[%clk 0:02:51.8]} 12. Bh6 {[%clk 0:02:45]} 12... Re8
{[%clk 0:02:47.3]} 13. Bg5 {[%clk 0:02:46]} 13... Qe7 {[%clk 0:02:41.8]} 14. Qe1
{[%clk 0:02:43.6]} 14... Ba4 {[%clk 0:02:34.5]} 15. Qh4 {[%clk 0:02:42.6]} 15...
Nbd7 {[%clk 0:02:33.9]} 16. Ng3 {[%clk 0:02:31.2]} 16... Kg7 {[%clk 0:02:26.8]}
17. Kh1 {[%clk 0:02:20.8]} 17... a6 {[%clk 0:02:13.3]} 18. Rg1 {[%clk
0:02:19.1]} 18... Kh8 {[%clk 0:02:12]} 19. Raf1 {[%clk 0:02:03.8]} 19... b5
{[%clk 0:02:11]} 20. f4 {[%clk 0:01:53.6]} 20... bxc4 {[%clk 0:02:11.6]} 21.
Bxc4 {[%clk 0:01:52]} 21... Bc2 {[%clk 0:01:59.4]} 22. fxe5 {[%clk 0:01:42.5]}
22... Qxe5 {[%clk 0:01:59.8]} 23. Bxf6+ {[%clk 0:01:33]} 23... Nxf6 {[%clk
0:02:00.2]} 24. Qxf6+ {[%clk 0:01:34.6]} 24... Qxf6 {[%clk 0:01:57.1]} 25. Rxf6
{[%clk 0:01:36.5]} 25... Bxe4+ {[%clk 0:01:57.9]} 26. Nxe4 {[%clk 0:01:33.2]}
26... Rxe4 {[%clk 0:01:59.3]} 27. Bb3 {[%clk 0:01:09.4]} 27... c4 {[%clk
0:01:59.2]} 28. Ba4 {[%clk 0:01:05.9]} 28... Kg7 {[%clk 0:01:50.9]} 29. Rxd6
{[%clk 0:00:58.5]} 29... Rb8 {[%clk 0:01:44.4]} 30. h3 {[%clk 0:00:35.1]} 30...
Rb2 {[%clk 0:01:44]} 31. Rg2 {[%clk 0:00:36]} 31... Re1+ {[%clk 0:01:41.4]} 32.
Kh2 {[%clk 0:00:36.6]} 32... Rbb1 {[%clk 0:01:37.3]} 33. Rxa6 {[%clk 0:00:34.5]}
33... Rh1+ {[%clk 0:01:35.7]} 34. Kg3 {[%clk 0:00:35.3]} 34... g5 {[%clk
0:01:37.2]} 35. d6 {[%clk 0:00:30.7]} 35... Rbc1 {[%clk 0:01:34.6]} 36. Bc2
{[%clk 0:00:31.5]} 36... Rce1 {[%clk 0:01:30.6]} 37. d7 {[%clk 0:00:29.5]} 37...
h5 {[%clk 0:01:19.8]} 38. gxh5 {[%clk 0:00:23.7]} 38... Re3+ {[%clk 0:01:19.3]}
39. Kf2 {[%clk 0:00:24.1]} 39... Rhe1 {[%clk 0:01:18.8]} 40. d8=Q {[%clk
0:00:22.2]} 40... R1e2+ {[%clk 0:01:18.9]} 41. Kg1 {[%clk 0:00:23]} 41... Re1+
{[%clk 0:01:20]} 42. Kh2 {[%clk 0:00:24.1]} 42... Re5 {[%clk 0:01:19.1]} 43.
Rxg5+ {[%clk 0:00:24]} 1-0

[Event "*** Titled Tuesday 3|2 Blitz"]
[Site "Chess.com"]
[Date "2016.01.05"]
[Round "3"]
[White "Gabrielian_Artur"]
[Black "GargleBlaster"]
[Result "1-0"]
[WhiteElo "2456"]
[BlackElo "2230"]
[TimeControl "180+2"]
[EndTime "11:33:53 PST"]
[Termination "Gabrielian_Artur won on time"]

1. e4 {[%clk 0:03:01.9]} 1... e5 {[%clk 0:03:00.9]} 2. Nf3 {[%clk 0:03:02.4]}
2... Nc6 {[%clk 0:03:01.4]} 3. Bc4 {[%clk 0:03:03.6]} 3... Bc5 {[%clk
0:03:02.2]} 4. d3 {[%clk 0:03:02.8]} 4... d6 {[%clk 0:03:02.8]} 5. c3 {[%clk
0:03:02.6]} 5... Nf6 {[%clk 0:03:03.2]} 6. Bg5 {[%clk 0:03:03]} 6... Bb6 {[%clk
0:02:49.8]} 7. b4 {[%clk 0:03:02.4]} 7... a6 {[%clk 0:02:49.1]} 8. a4 {[%clk
0:03:03]} 8... h6 {[%clk 0:02:22.8]} 9. Bh4 {[%clk 0:02:59.1]} 9... g5 {[%clk
0:02:21.1]} 10. Bg3 {[%clk 0:03:00]} 10... Bg4 {[%clk 0:02:22.2]} 11. h3 {[%clk
0:02:59.7]} 11... Bh5 {[%clk 0:02:23.1]} 12. Nbd2 {[%clk 0:03:00.3]} 12... Qe7
{[%clk 0:02:09.1]} 13. Qb3 {[%clk 0:02:58.3]} 13... Nd8 {[%clk 0:02:00]} 14. O-O
{[%clk 0:02:51.9]} 14... Ne6 {[%clk 0:02:00.6]} 15. a5 {[%clk 0:02:36.5]} 15...
Ba7 {[%clk 0:02:01.1]} 16. b5 {[%clk 0:02:31.4]} 16... axb5 {[%clk 0:01:57.4]}
17. Qxb5+ {[%clk 0:02:32]} 17... c6 {[%clk 0:01:58.4]} 18. Qb3 {[%clk 0:02:29]}
18... Nf4 {[%clk 0:01:34.5]} 19. Bxf4 {[%clk 0:02:22]} 19... gxf4 {[%clk
0:01:34]} 20. Rab1 {[%clk 0:02:19]} 20... Rb8 {[%clk 0:01:23.5]} 21. d4 {[%clk
0:02:19.9]} 21... Rg8 {[%clk 0:01:11.7]} 22. Kh1 {[%clk 0:02:20.1]} 22... Nd7
{[%clk 0:00:21.1]} 23. Qa3 {[%clk 0:02:04.9]} 23... Rg6 {[%clk 0:00:16.9]} 24.
Rfd1 {[%clk 0:01:56.7]} 24... Kf8 {[%clk 0:00:17.2]} 25. Bf1 {[%clk 0:01:56.7]}
25... Kg7 {[%clk 0:00:16.7]} 26. Rb2 {[%clk 0:01:38]} 26... Kh7 {[%clk
0:00:16.7]} 27. Rdb1 {[%clk 0:01:38]} 27... b6 {[%clk 0:00:17.2]} 28. c4 {[%clk
0:01:21]} 28... bxa5 {[%clk 0:00:16.2]} 29. Rxb8 {[%clk 0:01:20.7]} 29... Bxb8
{[%clk 0:00:14.4]} 30. Rb7 {[%clk 0:01:17.6]} 30... Qd8 {[%clk 0:00:13.2]} 31.
dxe5 {[%clk 0:00:59.6]} 31... Nxe5 {[%clk 0:00:13.7]} 32. Nxe5 {[%clk
0:00:58.8]} 32... dxe5 {[%clk 0:00:14.7]} 33. Rxf7+ {[%clk 0:00:59.8]} 33... Kg8
{[%clk 0:00:14.4]} 34. Rb7 {[%clk 0:00:58.4]} 34... Bd6 {[%clk 0:00:12.7]} 35.
Qb3 {[%clk 0:00:55.1]} 35... Qc8 {[%clk 0:00:09.4]} 36. c5+ {[%clk 0:00:55.8]}
36... Qe6 {[%clk 0:00:06.9]} 37. Qxe6+ {[%clk 0:00:56.3]} 37... Rxe6 {[%clk
0:00:08.8]} 38. Bc4 {[%clk 0:00:56.9]} 38... Bf7 {[%clk 0:00:04.1]} 39. Bxe6
{[%clk 0:00:57.2]} 39... Bxe6 {[%clk 0:00:04.7]} 40. cxd6 {[%clk 0:00:58.4]}
40... a4 {[%clk 0:00:06.6]} 41. d7 {[%clk 0:00:57.6]} 41... Bxd7 {[%clk
0:00:05.1]} 42. Rxd7 {[%clk 0:00:58.7]} 1-0